[Event "44th Chess Olympiad Women 2022"]
[Site "Chennai"]
[Date "2022.07.29"]
[Round "1.60"]
[White "Ramirez, Maria Eugenia"]
[Black "Roberts, Tallulah"]
[Result "1-0"]
[ECO "C01"]
[WhiteElo "2005"]
[BlackElo "1536"]
[Annotator "TA"]
[PlyCount "43"]
[EventDate "2022.07.29"]
[EventType "team-tourn"]
[EventCountry "IND"]
[SourceTitle "playchess.com"]
[Source "ChessBase"]
[SourceQuality "1"]
[WhiteTeam "Bolivia"]
[BlackTeam "Channel Islands"]
[WhiteTeamCountry "BOL"]
[BlackTeamCountry "JCI"]
[TimeControl "40/5400+30:1800+30"]

{[%evp 10,43,-8,0,0,0,0,-11,0,-14,-9,-17,-27,-13,6,0,10,-19,-17,-21,-13,-31,-25,-31,-13,-21,60,79,81,81,343,322,853,832,29959,6403]} 1. e4 {[%emt 0:00:03]} e6 {[%emt 0:00:01][%cal Be7e6,Be6d5][%mdl 32]} 2. d4 {[%emt 0:00:08]} d5 {[%emt 0:00:02]} 3. exd5 {[%emt 0:00:08]} exd5 {[%emt 0:00:02]} 4. c4 {[%emt 0:00:11]} Bb4+ {[%emt 0:00:03]} 5. Nc3 {[%emt 0:00:15]} Ne7 {[%emt 0:00:06][%cal Bg8e7,Be7f5,Bf5d4][%mdl 32]} 6. Nf3 {[%emt 0:01:19]} O-O {[%emt 0:00:13] C01: French: Exchange Variation.} 7. Bd3 {[%emt 0:00:28]} dxc4 {[%emt 0:00:10]} 8. Bxc4 {[%emt 0:00:09]} Nbc6 {[%emt 0:00:23] The position is equal.} 9. O-O {[%emt 0:04:36]} Bg4 {[%emt 0:00:19]} 10. Be3 {[%emt 0:03:58]} Nf5 {[%emt 0:00:38][%cal Of5d4]} 11. a3 {[%emt 0:16:12] [#]} Bxf3 $146 {[%emt 0:15:54]} ({Predecessor:} 11... Bd6 12. h3 Bxf3 13. Qxf3 Nfxd4 14. Qd5 Nc2 15. Bg5 Be7 16. Bxe7 Nxe7 17. Qxd8 Raxd8 {½-½ (25) Miezis,N (2490)-Dokutchaev,A (2414) Finland 2016}) 12. Qxf3 {[%emt 0:00:52]} Nfxd4 {[%emt 0:01:29]} 13. Qh5 {[%emt 0:18:12]} Bxc3 {[%emt 0:31:41]} 14. bxc3 {[%emt 0:00:09]} Ne6 {[%emt 0:00:07]} 15. Rab1 {[%emt 0:03:30]} Rb8 {[%emt 0:14:31]} 16. f4 {[%emt 0:23:39][%cal Bf2f4,Bf4f5,Bf5f6,Bf6g7][%mdl 32] [#] Threatens to win with f5.} Qf6 {[%emt 0:07:52]} 17. Rbc1 {[%emt 0:01:36]} ({Of course not} 17. Bd3 g6 18. Qh3 Qxc3 $17) (17. Rf3 $5 {[%cal Rf4f5]}) 17... b6 {[%emt 0:09:28]} ({Black should try} 17... h6 $11) 18. f5 $1 $36 {[%emt 0:03:59][%mdl 2048] White is really pushing.} Nc5 {[%emt 0:03:10]} 19. Bg5 {[%emt 0:01:17] White is more active. A strong pair of Bishops.} Qd6 {[%emt 0:10:19][%mdl 8192] [#]} (19... Qe5 $16) 20. f6 {[%emt 0:07:34]} Ne5 $2 {[%emt 0:01:44]} (20... Ne6) 21. fxg7 $18 {[%emt 0:01:09]} Rfe8 {[%emt 0:00:30]} 22. Bxf7+ {[%emt 0:00:36] Weighted Error Value: White=0.07 (flawless) /Black=0.81} 1-0

[Event "44th Chess Olympiad Women 2022"]
[Site "Chennai"]
[Date "2022.07.29"]
[Round "1.61"]
[White "Thorsteinsdottir, Hallgerdur"]
[Black "Ahmed, Najla"]
[Result "1-0"]
[WhiteElo "1934"]
[BlackElo "1176"]
[Annotator "TA"]
[PlyCount "14"]
[EventDate "2022.07.29"]
[EventType "team-tourn"]
[EventCountry "IND"]
[SourceTitle "playchess.com"]
[Source "ChessBase"]
[SourceQuality "1"]
[WhiteTeam "Iceland"]
[BlackTeam "Brunei"]
[WhiteTeamCountry "ISL"]
[BlackTeamCountry "BRN"]
[TimeControl "40/5400+30:1800+30"]

{[%evp 9,14,19,60,28,84,42,90]} 1. d4 {[%emt 0:00:06]} d5 {[%emt 0:00:07]} 2. c4 {[%emt 0:00:09]} dxc4 {[%emt 0:00:08]} 3. e4 {[%emt 0:00:16][%cal Be2e4,Be4e5][%mdl 32]} Nf6 {[%emt 0:00:21]} 4. e5 {[%emt 0:00:26]} Nd5 {[%emt 0:00:07]} 5. Bxc4 {[%emt 0:00:19]} e6 {[%emt 0:00:16]} 6. a3 {[%emt 0:01:36] [#] D20: Queen's Gambit Accepted: 3 e3 and 3 e4.} c6 $146 {[%emt 0:05:06]} (6... b6 $11 {remains equal.}) ({Predecessor:} 6... c5 7. Nf3 Be7 8. O-O cxd4 9. Qxd4 Nc6 10. Qg4 O-O 11. Bh6 g6 12. Bxf8 Bxf8 13. Nc3 Nxc3 14. bxc3 {1-0 (46) Prachar,J (1899)-Pindura,V (1629) Olomouc 2015}) 7. Ne2 {[%emt 0:07:08]} a6 {[%emt 0:02:07]} (7... c5 $14) 1-0

[Event "44th Chess Olympiad Women 2022"]
[Site "Chennai"]
[Date "2022.07.29"]
[Round "1.61"]
[White "Almusawi, Maram"]
[Black "Johannsdottir, Johanna Bjorg"]
[Result "0-1"]
[ECO "A40"]
[WhiteElo "1349"]
[BlackElo "1976"]
[Annotator "TA"]
[PlyCount "54"]
[EventDate "2022.07.29"]
[EventType "team-tourn"]
[EventCountry "IND"]
[SourceTitle "playchess.com"]
[Source "ChessBase"]
[SourceQuality "1"]
[WhiteTeam "Brunei"]
[BlackTeam "Iceland"]
[WhiteTeamCountry "BRN"]
[BlackTeamCountry "ISL"]
[TimeControl "40/5400+30:1800+30"]

{[%evp 9,53,0,6,5,22,-13,-11,-28,0,-4,22,6,4,-63,-23,-16,15,-12,8,-11,56,-27,44,-80,-81,-79,-83,-83,-75,-87,-86,-82,-85,-100,-85,-329,-210,-426,-129,-722,-649,-29996,-29997,-29998,-29999,-29999]} 1. d4 {[%emt 0:00:04]} g6 {[%emt 0:00:06]} 2. Nf3 {[%emt 0:00:28]} Bg7 {[%emt 0:00:07]} 3. e3 {[%emt 0:00:10]} d6 {[%emt 0:00:29]} 4. Be2 {[%emt 0:01:02]} Nd7 {[%emt 0:01:40]} 5. Nbd2 {[%emt 0:02:16]} e5 {[%emt 0:02:31]} 6. c3 {[%emt 0:05:46] A40: Unusual replies to 1 d4.} Qe7 {[%emt 0:05:04] [#]} 7. Qc2 $146 {[%emt 0:02:35]} ({Predecessor:} 7. e4 Ngf6 8. Bd3 d5 9. O-O dxe4 10. Nxe4 Nxe4 11. Bxe4 f5 12. Bc2 e4 13. Re1 {0-1 (40) Gomez Girones,F (1794)-Castillo Martinez,E (2039) Maresme 2012}) 7... Ngf6 {[%emt 0:06:40]} 8. Bd3 {[%emt 0:03:08] The position is equal.} O-O {[%emt 0:04:13]} 9. O-O {[%emt 0:02:39]} Nd5 {[%emt 0:04:26]} 10. Qb3 {[%emt 0:08:56]} c6 {[%emt 0:01:57]} 11. Bc4 {[%emt 0:02:35]} (11. Re1 $11) 11... N5b6 {[%emt 0:04:52]} (11... e4 $5 {[%cal Re4f3]} 12. Ne1 (12. Bxd5 cxd5 13. Ne1 Nf6 $17) 12... N7f6 $15) 12. Bd3 {[%emt 0:04:20]} Kh8 {[%emt 0:05:47]} 13. a4 {[%emt 0:05:51]} a5 {[%emt 0:05:07]} (13... Nd5 $5 {[%cal Rf7f5]}) 14. Re1 {[%emt 0:02:59]} Nd5 {[%emt 0:01:16]} (14... g5 $11) 15. Qa2 {[%emt 0:06:22]} (15. e4 $14 Nf4 16. Bf1) 15... N7f6 {[%emt 0:13:52]} ({Black should play} 15... g5 $11 16. dxe5 dxe5) 16. Ne4 {[%emt 0:02:15]} (16. e4 $14 {stays ahead.} Nf4 17. Bf1) 16... Nxe4 $17 {[%emt 0:02:36]} 17. Bxe4 {[%emt 0:00:16]} Be6 {[%emt 0:00:15][%cal Od5c3] [#] ...Nxc3! is the strong threat.} 18. Qb1 {[%emt 0:01:54]} f5 {[%emt 0:00:35]} 19. Bc2 {[%emt 0:05:33]} e4 {[%emt 0:01:20]} 20. Nd2 {[%emt 0:00:22]} Qh4 {[%emt 0:00:17]} 21. Nf1 {[%emt 0:04:42]} Nf6 $36 {[%emt 0:02:33][%mdl 2048] White is under strong pressure. 0x0.001b83f3bbe4dp-1022s more active pieces.} 22. Ng3 $2 {[%emt 0:01:37]} (22. b3 $17) 22... g5 {[%emt 0:03:25] Hoping for ...Ng4.} 23. Nf1 $2 {[%emt 0:02:43]} (23. Bd1) 23... Bc4 $2 {[%emt 0:01:23]} (23... Ng4 $19 {has better winning chances.} 24. g3 Qh3) 24. g3 $2 {[%emt 0:01:06][%mdl 8192] White does not recover from this.} (24. b3 $17 Ba6 25. c4) 24... Qh3 $19 {[%emt 0:00:12] ( -> ...Bxf1)} 25. Nd2 {[%emt 0:00:09] [#]} Ng4 $1 {[%emt 0:00:15][%csl Gg4][%cal Rh3h2] Black mates.} 26. Re2 {[%emt 0:07:05]} (26. Nf1 Bxf1) 26... Qxh2+ {[%emt 0:00:15]} 27. Kf1 {[%emt 0:00:17]} Qxf2# {[%emt 0:00:19] Weighted Error Value: White=0.92/Black=0.36} 0-1

[Event "44th Chess Olympiad Women 2022"]
[Site "Chennai"]
[Date "2022.07.29"]
[Round "1.62"]
[White "Mezioud, Amina"]
[Black "Abigail Karyah"]
[Result "1-0"]
[ECO "C41"]
[WhiteElo "2024"]
[BlackElo "1455"]
[Annotator "TA"]
[PlyCount "21"]
[EventDate "2022.07.29"]
[EventType "team-tourn"]
[EventCountry "IND"]
[SourceTitle "playchess.com"]
[Source "ChessBase"]
[SourceQuality "1"]
[WhiteTeam "Algeria"]
[BlackTeam "Liberia"]
[WhiteTeamCountry "ALG"]
[BlackTeamCountry "LBR"]
[TimeControl "40/5400+30:1800+30"]

{[%evp 12,21,18,14,29,18,27,29,37,28,66,28]} 1. e4 {[%emt 0:00:05]} e5 {[%emt 0:00:07]} 2. Nf3 {[%emt 0:00:06][%cal Bg1f3,Bf3d4,Bd4b3][%mdl 32]} d6 {[%emt 0:00:13]} 3. d4 {[%emt 0:00:05]} exd4 {[%emt 0:00:26]} 4. Nxd4 {[%emt 0:00:06]} Nf6 {[%emt 0:00:12]} 5. Nc3 {[%emt 0:00:06]} Be7 {[%emt 0:00:17]} 6. Be2 {[%emt 0:01:44]} O-O {[%emt 0:00:12]} 7. Be3 {[%emt 0:00:09]} c5 {[%emt 0:01:20] C41: Philidor Defence.} 8. Nb3 {[%emt 0:00:58]} Nc6 {[%emt 0:00:32]} 9. O-O {[%emt 0:00:46]} Be6 {[%emt 0:00:42]} 10. f4 {[%emt 0:02:07]} Qc7 {[%emt 0:01:32] [#]} 11. Nd5 $146 {[%emt 0:03:38][%mdl 32768] Black did not feel at home in the position after the opening.  Weighted Error Value: White=0.01 (flawless) /Black=0.12 (very precise) . Loss on time!?} ({Predecessor:} 11. Bf3 Rfe8 12. g4 Bf8 13. Nd2 d5 14. exd5 Bxd5 15. Bxd5 Rxe3 16. Nc4 Ree8 17. Qf3 {0-1 (36) Savory,R-Smith,A (2265) London 1994}) 1-0

[Event "44th Chess Olympiad Women 2022"]
[Site "Chennai"]
[Date "2022.07.29"]
[Round "1.73"]
[White "Grishina, Alexandra"]
[Black "Inthavong, Maly"]
[Result "1-0"]
[ECO "A40"]
[WhiteElo "2012"]
[BlackElo "1231"]
[Annotator "TA"]
[PlyCount "79"]
[EventDate "2022.07.29"]
[EventType "team-tourn"]
[EventCountry "IND"]
[SourceTitle "playchess.com"]
[Source "ChessBase"]
[SourceQuality "1"]
[WhiteTeam "Lebanon"]
[BlackTeam "Laos"]
[WhiteTeamCountry "LBN"]
[BlackTeamCountry "LAO"]
[TimeControl "40/5400+30:1800+30"]

{[%evp 9,78,368,362,368,364,356,364,358,384,352,392,400,412,402,447,439,421,445,443,445,436,382,385,391,400,381,422,414,423,407,605,611,645,622,820,799,858,859,957,927,897,855,833,784,914,790,845,827,914,860,857,847,934,926,5831,5835,2826,2664,29992,29990,29989,29987,29987,29988,29987,29988,29993,29994,29994,29995,29999]} 1. Nf3 {[%emt 0:00:11]} Nc6 {[%emt 0:00:38]} 2. d4 {[%emt 0:00:59][%cal Bd2d4,Bd4d5][%mdl 32]} Nf6 {[%emt 0:01:11]} 3. d5 {[%emt 0:01:13]} Nb4 {[%emt 0:01:23]} 4. c4 {[%emt 0:02:17]} d6 {[%emt 0:00:29]} 5. Qa4+ {[%emt 0:01:10] [#]} Nc6 $146 {[%emt 0:05:06]} ({Predecessor:} 5... c6 6. Qxb4 cxd5 7. cxd5 Nxd5 8. Qb5+ Bd7 9. Qxd5 e6 10. Qxb7 d5 11. Ne5 Rb8 12. Qxa7 {1-0 (24) Kunze,J (1980)-Rohloff,F (1546) GER email 2019}) 6. dxc6 {[%emt 0:02:54] A40: Unusual replies to 1 d4.} bxc6 {[%emt 0:01:52]} 7. Qxc6+ {[%emt 0:02:43]} Bd7 {[%emt 0:00:17]} 8. Qa6 {[%emt 0:00:33] White is winning.} e5 {[%emt 0:01:54]} 9. g3 {[%emt 0:02:05]} Ne4 {[%emt 0:03:49]} 10. Bg2 {[%emt 0:03:28]} Nc5 {[%emt 0:02:54]} 11. Qa5 {[%emt 0:01:17]} Bc6 {[%emt 0:02:24]} 12. Bg5 {[%emt 0:05:22]} Be7 {[%emt 0:01:48]} 13. Bxe7 {[%emt 0:00:34]} Qxe7 {[%emt 0:00:21]} 14. O-O {[%emt 0:00:39]} O-O {[%emt 0:00:26]} 15. Qd2 {[%emt 0:00:34]} f5 {[%emt 0:03:28]} 16. Nc3 {[%emt 0:03:50]} Rab8 {[%emt 0:02:52]} 17. Nd5 {[%emt 0:03:09]} Qd7 {[%emt 0:02:33]} 18. Rad1 {[%emt 0:05:25]} Ne4 {[%emt 0:06:34]} 19. Qc2 {[%emt 0:02:19]} Ba8 {[%emt 0:03:10] [#]} (19... Kh8 $142 20. b3 a5) 20. Nxe5 $1 $18 {[%emt 0:12:57]} Qe6 {[%emt 0:02:37]} (20... dxe5 21. Bxe4) 21. Nf3 {[%emt 0:02:11]} Rbc8 {[%emt 0:01:18]} 22. Nd4 {[%emt 0:04:02]} Qe8 {[%emt 0:03:21] [#]} 23. Nxf5 $1 {[%emt 0:04:18]} Rxf5 {[%emt 0:04:02]} (23... Bxd5 24. Rxd5) 24. Bxe4 {[%emt 0:00:54]} Rh5 {[%emt 0:00:40]} 25. Bf3 {[%emt 0:06:02]} Rh6 {[%emt 0:00:38]} 26. Rd4 {[%emt 0:01:47][%cal Bd1d4,Bd4e4,Be4e7][%mdl 32]} Kh8 {[%emt 0:02:55]} 27. Qe4 {[%emt 0:06:25] aiming for Qxe8+.} Qf7 {[%emt 0:01:14]} 28. Qf4 {[%emt 0:00:59]} Qe8 {[%emt 0:01:32]} 29. Re4 {[%emt 0:00:37]} Qd8 {[%emt 0:03:09]} 30. Qf7 {[%emt 0:01:40]} c6 {[%emt 0:01:14]} 31. Re7 {[%emt 0:04:09][%csl Ge7][%cal Rf7g7]} Rg6 {[%emt 0:02:21]} 32. Nf4 {[%emt 0:00:48]} Rg5 {[%emt 0:02:24]} 33. Ne6 {[%emt 0:00:22]} Rxg3+ {[%emt 0:01:48]} 34. hxg3 {[%emt 0:00:28][%csl Ge6,Ge7][%cal Rf7g7] White mates.} Qg8 {[%emt 0:00:13]} 35. Qxg7+ {[%emt 0:03:51]} Qxg7 {[%emt 0:00:32]} 36. Nxg7 {[%emt 0:00:13]} Rg8 {[%emt 0:01:04]} 37. Ne6 {[%emt 0:00:22]} a5 {[%emt 0:00:58]} 38. Be4 {[%emt 0:00:06][%csl Ge4][%cal Re7h7]} Rg4 {[%emt 0:01:01]} 39. Bf5 {[%emt 0:00:51]} Rxc4 {[%emt 0:03:51]} 40. Re8# {[%emt 0:00:21] Weighted Error Value: White=0.10 (very precise) /Black=0.34} 1-0

[Event "44th Chess Olympiad Women 2022"]
[Site "Chennai"]
[Date "2022.07.29"]
[Round "1.76"]
[White "Ortez, Andrea"]
[Black "Marusic, Nada"]
[Result "1-0"]
[ECO "C77"]
[WhiteElo "1908"]
[BlackElo "1955"]
[Annotator "TA"]
[PlyCount "79"]
[EventDate "2022.07.29"]
[EventType "team-tourn"]
[EventCountry "IND"]
[SourceTitle "playchess.com"]
[Source "ChessBase"]
[SourceQuality "1"]
[WhiteTeam "El Salvador"]
[BlackTeam "Slovenia"]
[WhiteTeamCountry "ESA"]
[BlackTeamCountry "SLO"]
[TimeControl "40/5400+30:1800+30"]

{[%evp 13,78,15,22,-33,0,-14,-1,-9,6,-14,32,0,141,71,77,70,82,81,112,-43,177,177,252,243,320,306,441,426,558,539,804,795,926,934,950,869,933,945,929,906,997,939,1184,1192,1253,1232,1416,1268,1701,1701,1502,1254,1594,1575,1591,1583,1579,1546,1576,1434,1433,1429,1399,1392,1631,1586,29999]} 1. e4 {[%emt 0:00:06]} e5 {[%emt 0:00:05]} 2. Nf3 {[%emt 0:00:26]} Nc6 {[%emt 0:01:03]} 3. Bb5 {[%emt 0:00:26]} Nf6 {[%emt 0:00:50]} 4. Qe2 {[%emt 0:01:20]} d6 {[%emt 0:03:33]} 5. c3 {[%emt 0:00:40]} Be7 {[%emt 0:00:30]} 6. d3 {[%emt 0:02:32]} a6 {[%emt 0:02:47]} 7. Ba4 {[%emt 0:00:17]} O-O {[%emt 0:00:47]} 8. Bg5 {[%emt 0:00:00] C77: Ruy Lopez: 3...a6 4 Ba4 Nf6, unusual lines.} (8. O-O $11) 8... Bd7 {[%emt 0:03:30]} 9. Nbd2 {[%emt 0:00:00]} b5 {[%emt 0:00:55]} 10. Bb3 {[%emt 0:00:00] The position is equal.} Rb8 {[%emt 0:03:05]} 11. h3 {[%emt 0:05:57] [#]} b4 $146 {[%emt 0:04:40]} (11... Na5 $11) ({Predecessor:} 11... h6 12. Bd5 hxg5 13. Nxg5 Nxd5 14. exd5 Bxg5 15. Nf3 Na7 16. h4 Bh6 17. g4 Bxg4 {0-1 (32) Orihuela,A-Cornejo Perales,G (1410) Lima 2014}) 12. O-O {[%emt 0:09:03]} d5 {[%emt 0:07:35]} (12... h6 $11 {remains equal.} 13. Be3 Na5) 13. exd5 {[%emt 0:05:25]} (13. Bxf6 $142 Bxf6 14. exd5) 13... Nxd5 $16 {[%emt 0:08:54]} 14. Bxe7 {[%emt 0:01:13]} Ncxe7 {[%emt 0:03:10]} 15. Qxe5 {[%emt 0:00:39]} Bc6 {[%emt 0:04:36]} 16. c4 $2 {[%emt 0:04:59] [#] White is more active.} (16. Qd4 $16) 16... Nf6 $2 {[%emt 0:02:23] Loses the game.} (16... Ng6 $15 {stays ahead.} 17. Qd4 Ndf4 18. Qxd8 Rfxd8) 17. d4 $18 {[%emt 0:01:18]} a5 {[%emt 0:04:44]} (17... Ng6 $142 18. Qh2 Bxf3) 18. Qxa5 {[%emt 0:02:07]} Ra8 {[%emt 0:02:42]} 19. Qxb4 {[%emt 0:00:26]} Nf5 {[%emt 0:01:36]} (19... Ne4 $142 20. Rae1 Rb8) 20. Qc5 {[%emt 0:02:20]} Qd7 {[%emt 0:02:41]} 21. Bc2 {[%emt 0:01:55] Prevents Ne4.} g6 {[%emt 0:02:56]} 22. Bxf5 {[%emt 0:00:51]} gxf5 {[%emt 0:01:27]} 23. Ne5 {[%emt 0:01:10][%csl LRc6,LRd7]} Qd6 {[%emt 0:04:37]} 24. Qxc6 {[%emt 0:02:51]} Qxc6 {[%emt 0:05:44]} 25. Nxc6 {[%emt 0:00:05]} Rfe8 {[%emt 0:00:47]} 26. Ne5 {[%emt 0:01:54]} Ra5 {[%emt 0:02:01]} 27. Rfe1 {[%emt 0:00:58]} c5 {[%emt 0:01:27]} 28. Nb3 {[%emt 0:01:25][%csl LRa5,LRc5][%cal Bd2b3,Bb3c5,Bc5d7,Bd7e5,Be5f7][%mdl 32]} Ra4 {[%emt 0:02:08]} 29. Nxc5 {[%emt 0:00:13]} Ra7 {[%emt 0:00:49]} 30. a3 {[%emt 0:02:06]} Nh5 {[%emt 0:01:14]} 31. Nc6 {[%emt 0:00:23]} Raa8 {[%emt 0:01:51]} 32. Ne7+ {[%emt 0:01:07][%cal Bc6e7,Be7f5,Bf5d6][%mdl 32]} Kf8 {[%emt 0:00:59]} 33. Nd7+ {[%emt 0:02:02]} Kg7 {[%emt 0:00:58]} 34. Nxf5+ {[%emt 0:00:21]} Kg6 {[%emt 0:04:25]} 35. Nd6 {[%emt 0:03:19]} Red8 {[%emt 0:00:00]} 36. Ne5+ {[%emt 0:00:11]} Kg7 {[%emt 0:01:02]} 37. Nexf7 {[%emt 0:00:15]} Rd7 {[%emt 0:00:54]} 38. Re5 {[%emt 0:00:25]} Nf6 {[%emt 0:01:54]} 39. c5 {[%emt 0:04:36]} Rf8 {[%emt 0:02:41]} 40. Rg5# {[%emt 0:00:19] Weighted Error Value: White=0.36/Black=0.85} 1-0